[Event "Kupreichik Memorial Rapid 2019"]
[Site "Minsk"]
[Date "2019.08.16"]
[Round "5.25"]
[White "Kharin, Mikhail"]
[Black "Zvereva, Margarita"]
[Result "1-0"]
[ECO "D00"]
[WhiteElo "2156"]
[BlackElo "1678"]
[Annotator "NA"]
[PlyCount "157"]
[EventDate "2019.08.15"]
[EventType "swiss"]
[EventCountry "BLR"]
[SourceTitle "playchess.com"]
[Source "ChessBase"]
[SourceQuality "1"]
[TimeControl "900+10"]

1. d4 {[%emt 0:00:00]} d5 {[%emt 0:00:00]} 2. Nc3 {[%emt 0:00:00]} Nf6 {[%emt 0:00:00]} 3. Bf4 {[%emt 0:00:00]} c6 {[%emt 0:00:17]} 4. e3 {[%emt 0:00:00]} e6 {[%emt 0:00:14]} 5. Nf3 {[%emt 0:00:04]} Bd6 {[%emt 0:00:03]} 6. Ne5 {[%emt 0:00:02]} O-O {[%emt 0:00:25]} 7. Bd3 {[%emt 0:00:03]} a6 {[%emt 0:00:19]} 8. g4 {[%emt 0:00:29]} c5 {[%emt 0:01:31]} 9. g5 {[%emt 0:00:04]} Ne8 {[%emt 0:00:19]} 10. dxc5 {[%emt 0:01:48]} Bxe5 {[%emt 0:01:04]} 11. Bxe5 {[%emt 0:00:07]} Qxg5 {[%emt 0:00:08]} 12. Bf4 {[%emt 0:00:50]} Qg2 {[%emt 0:03:10]} 13. Rf1 {[%emt 0:02:04]} Nf6 {[%emt 0:02:58]} 14. Qe2 {[%emt 0:00:54]} Nc6 {[%emt 0:01:47]} 15. Bd6 {[%emt 0:00:15]} Re8 {[%emt 0:00:46]} 16. O-O-O {[%emt 0:00:14]} e5 {[%emt 0:01:31]} 17. Rg1 {[%emt 0:00:45]} Qh3 {[%emt 0:00:03]} 18. Rg3 {[%emt 0:00:25]} Qh4 {[%emt 0:01:59]} 19. Qf1 {[%emt 0:01:49]} Nb4 {[%emt 0:00:58]} 20. Qg2 {[%emt 0:02:27]} g6 {[%emt 0:00:12]} 21. a3 {[%emt 0:05:27]} Nxd3+ {[%emt 0:00:12]} 22. Rxd3 {[%emt 0:00:03]} d4 {[%emt 0:00:24]} 23. Nd1 {[%emt 0:00:46]} dxe3 {[%emt 0:00:11]} 24. Rdxe3 {[%emt 0:00:04]} e4 {[%emt 0:00:13]} 25. Nc3 {[%emt 0:00:02]} Bf5 {[%emt 0:00:10]} 26. Ne2 {[%emt 0:00:11]} Nd5 {[%emt 0:00:08]} 27. Rb3 {[%emt 0:00:14]} Qh6+ {[%emt 0:00:13]} 28. Kb1 {[%emt 0:00:03]} Qd2 {[%emt 0:00:04]} 29. Rge3 {[%emt 0:00:20]} Nxe3 {[%emt 0:00:04]} 30. Rxe3 {[%emt 0:00:01]} Qd1+ {[%emt 0:00:05]} 31. Nc1 {[%emt 0:00:06]} Rac8 {[%emt 0:00:24]} 32. Qg3 {[%emt 0:00:20]} b6 {[%emt 0:00:08]} 33. Rc3 {[%emt 0:00:08]} bxc5 {[%emt 0:00:06]} 34. Bxc5 {[%emt 0:00:04]} Red8 {[%emt 0:00:15]} 35. Qe5 {[%emt 0:00:17]} Qd5 {[%emt 0:00:13]} 36. Qf6 {[%emt 0:00:11]} Qe6 {[%emt 0:00:11]} 37. Qg5 {[%emt 0:00:11]} Rd5 {[%emt 0:00:06]} 38. Qe3 {[%emt 0:00:09]} Rd1 {[%emt 0:00:13]} 39. b4 {[%emt 0:00:04]} Qd5 {[%emt 0:00:11]} 40. Kb2 {[%emt 0:00:25]} Qd2 {[%emt 0:00:10]} 41. Nb3 {[%emt 0:00:10]} Qxe3 {[%emt 0:00:07]} 42. Rxe3 {[%emt 0:00:02]} Rh1 {[%emt 0:00:07]} 43. Bd6 {[%emt 0:00:03]} Rf1 {[%emt 0:00:08]} 44. Bg3 {[%emt 0:00:04]} Rd1 {[%emt 0:00:17]} 45. Nc5 {[%emt 0:00:03]} a5 {[%emt 0:00:07]} 46. Nb3 {[%emt 0:00:40]} axb4 {[%emt 0:00:09]} 47. axb4 {[%emt 0:00:01]} Rc6 {[%emt 0:00:14]} 48. Nc5 {[%emt 0:00:05]} Rb6 {[%emt 0:00:06]} 49. c3 {[%emt 0:00:05]} Rd2+ {[%emt 0:00:16]} 50. Kb3 {[%emt 0:00:08]} Be6+ {[%emt 0:00:07]} 51. Nxe6 {[%emt 0:00:03]} Rxe6 {[%emt 0:00:02]} 52. b5 {[%emt 0:00:03]} Rd1 {[%emt 0:00:08]} 53. Bc7 {[%emt 0:00:13]} Rb1+ {[%emt 0:00:13]} 54. Kc4 {[%emt 0:00:03]} f5 {[%emt 0:00:11]} 55. Kd5 {[%emt 0:00:11]} Re8 {[%emt 0:00:08]} 56. b6 {[%emt 0:00:02]} Kf7 {[%emt 0:00:16]} 57. c4 {[%emt 0:00:06]} Kf6 {[%emt 0:00:10]} 58. c5 {[%emt 0:00:09]} Kg5 {[%emt 0:00:11]} 59. Rg3+ {[%emt 0:00:07]} Kf6 {[%emt 0:00:05]} 60. c6 {[%emt 0:00:04]} g5 {[%emt 0:00:03]} 61. b7 {[%emt 0:00:59]} Rd1+ {[%emt 0:00:13]} 62. Kc4 {[%emt 0:00:06]} f4 {[%emt 0:00:20]} 63. Rb3 {[%emt 0:00:07]} Rc1+ {[%emt 0:00:10]} 64. Kb5 {[%emt 0:00:13]} e3 {[%emt 0:00:06]} 65. fxe3 {[%emt 0:00:05]} fxe3 {[%emt 0:00:14]} 66. b8=Q {[%emt 0:00:08]} Rxb8+ {[%emt 0:00:03]} 67. Bxb8 {[%emt 0:00:01]} e2 {[%emt 0:00:05]} 68. Bg3 {[%emt 0:00:20]} e1=Q {[%emt 0:00:13]} 69. Bxe1 {[%emt 0:00:02]} Rxe1 {[%emt 0:00:01]} 70. Rc3 {[%emt 0:00:11]} Re8 {[%emt 0:00:08]} 71. c7 {[%emt 0:00:01]} Rc8 {[%emt 0:00:01]} 72. Kc6 {[%emt 0:00:07]} h5 {[%emt 0:00:02]} 73. Rc5 {[%emt 0:00:05]} h4 {[%emt 0:00:06]} 74. Kd7 {[%emt 0:00:01]} Rxc7+ {[%emt 0:00:11]} 75. Kxc7 {[%emt 0:00:02]} g4 {[%emt 0:00:01]} 76. Kd6 {[%emt 0:00:10]} g3 {[%emt 0:00:04]} 77. hxg3 {[%emt 0:00:02]} hxg3 {[%emt 0:00:02]} 78. Rc3 {[%emt 0:00:02]} g2 {[%emt 0:00:01]} 79. Rg3 1-0

[Event "Kupreichik Memorial Rapid 2019"]
[Site "Minsk"]
[Date "2019.08.16"]
[Round "5.26"]
[White "Stsepkina, Yauheniya"]
[Black "Svjatocho, Andrej"]
[Result "0-1"]
[ECO "A40"]
[WhiteElo "1537"]
[BlackElo "1995"]
[Annotator "NA"]
[PlyCount "134"]
[EventDate "2019.08.15"]
[EventType "swiss"]
[EventCountry "BLR"]
[SourceTitle "playchess.com"]
[Source "ChessBase"]
[SourceQuality "1"]
[TimeControl "900+10"]

1. d4 {[%emt 0:00:00]} e6 {[%emt 0:00:00]} 2. c4 {[%emt 0:00:00]} f5 {[%emt 0:00:01]} 3. Nf3 {[%emt 0:00:00]} Nf6 {[%emt 0:00:02]} 4. g3 {[%emt 0:00:01]} d5 {[%emt 0:00:02]} 5. Bg2 {[%emt 0:00:16]} c6 {[%emt 0:00:01]} 6. O-O {[%emt 0:00:02]} Bd6 {[%emt 0:00:02]} 7. b3 {[%emt 0:00:02]} Qe7 {[%emt 0:00:02]} 8. Bb2 {[%emt 0:00:05]} O-O {[%emt 0:00:04]} 9. Nbd2 {[%emt 0:00:24]} b6 {[%emt 0:00:06]} 10. Ne5 {[%emt 0:00:12]} Bb7 {[%emt 0:00:03]} 11. Qc2 {[%emt 0:01:27]} Nbd7 {[%emt 0:00:46]} 12. Ndf3 {[%emt 0:03:26]} Rac8 {[%emt 0:00:13]} 13. Rfd1 {[%emt 0:00:13]} Ne4 {[%emt 0:00:31]} 14. Nxd7 {[%emt 0:00:18]} Qxd7 {[%emt 0:00:10]} 15. Ne5 {[%emt 0:00:02]} Qe7 {[%emt 0:00:22]} 16. Rac1 {[%emt 0:00:58]} Rfd8 {[%emt 0:01:24]} 17. e3 {[%emt 0:01:33]} c5 {[%emt 0:02:01]} 18. Nf3 {[%emt 0:05:06]} Rc7 {[%emt 0:01:43]} 19. Ba3 {[%emt 0:00:40]} Rdc8 {[%emt 0:02:19]} 20. Nd2 {[%emt 0:01:52]} Ba6 {[%emt 0:04:29]} 21. Bf1 {[%emt 0:01:12]} cxd4 {[%emt 0:00:58]} 22. Bxd6 {[%emt 0:00:03]} Nxd6 {[%emt 0:00:03]} 23. exd4 {[%emt 0:00:15]} f4 {[%emt 0:00:20]} 24. Kg2 {[%emt 0:00:33]} Qf6 {[%emt 0:00:08]} 25. Qb2 {[%emt 0:00:09]} dxc4 {[%emt 0:00:29]} 26. bxc4 Bb7+ 27. f3 {[%emt 0:00:12]} Nf5 {[%emt 0:00:14]} 28. Kf2 {[%emt 0:00:24]} fxg3+ {[%emt 0:00:34]} 29. hxg3 {[%emt 0:00:02]} Nxd4 {[%emt 0:00:02]} 30. Qc3 {[%emt 0:00:15]} Rf7 {[%emt 0:00:12]} 31. Bg2 {[%emt 0:00:02]} Rcf8 {[%emt 0:00:22]} 32. Ne4 {[%emt 0:00:21]} Bxe4 {[%emt 0:00:25]} 33. Qxd4 {[%emt 0:00:10]} Bxf3 {[%emt 0:00:47]} 34. Qxf6 {[%emt 0:00:04]} Bxd1 {[%emt 0:00:13]} 35. Qxf7+ {[%emt 0:00:07]} Rxf7+ {[%emt 0:00:02]} 36. Ke3 {[%emt 0:00:09]} Rd7 {[%emt 0:00:03]} 37. Bd5 {[%emt 0:00:13]} exd5 {[%emt 0:00:10]} 38. Rxd1 {[%emt 0:00:01]} Re7+ {[%emt 0:00:02]} 39. Kd4 {[%emt 0:00:05]} dxc4 {[%emt 0:00:04]} 40. Kxc4 {[%emt 0:00:05]} a6 {[%emt 0:00:11]} 41. Rd3 {[%emt 0:00:13]} Rc7+ {[%emt 0:00:02]} 42. Kb4 {[%emt 0:00:08]} Rc6 {[%emt 0:00:11]} 43. a4 {[%emt 0:00:07]} Kf7 {[%emt 0:00:16]} 44. Rd7+ {[%emt 0:00:01]} Kf6 {[%emt 0:00:03]} 45. Ra7 {[%emt 0:00:03]} b5 {[%emt 0:00:23]} 46. a5 {[%emt 0:00:12]} h5 {[%emt 0:00:49]} 47. Rb7 {[%emt 0:00:05]} Kf5 {[%emt 0:00:57]} 48. Rxg7 {[%emt 0:00:11]} Rc4+ {[%emt 0:00:02]} 49. Kb3 {[%emt 0:00:06]} Ra4 {[%emt 0:00:03]} 50. Rf7+ {[%emt 0:00:18]} Kg6 {[%emt 0:00:05]} 51. Rc7 {[%emt 0:00:48]} Rxa5 {[%emt 0:00:03]} 52. Kb4 {[%emt 0:00:05]} Ra4+ {[%emt 0:00:03]} 53. Kb3 {[%emt 0:00:13]} Rg4 {[%emt 0:00:11]} 54. Rc6+ {[%emt 0:00:09]} Kf7 {[%emt 0:00:21]} 55. Rxa6 {[%emt 0:00:12]} Rxg3+ {[%emt 0:00:02]} 56. Kb4 {[%emt 0:00:00]} Rg5 {[%emt 0:00:02]} 57. Rc6 {[%emt 0:00:08]} h4 {[%emt 0:00:03]} 58. Rh6 {[%emt 0:00:04]} Rg4+ {[%emt 0:00:47]} 59. Kxb5 {[%emt 0:00:01]} Kg7 {[%emt 0:00:03]} 60. Ra6 {[%emt 0:00:39]} h3 {[%emt 0:00:13]} 61. Ra1 {[%emt 0:00:01]} Kf6 {[%emt 0:00:32]} 62. Kc5 {[%emt 0:00:23]} Ke5 {[%emt 0:00:06]} 63. Rf1 {[%emt 0:00:11]} Rh4 {[%emt 0:00:03]} 64. Rh1 {[%emt 0:00:11]} h2 {[%emt 0:00:04]} 65. Kb5 {[%emt 0:00:03]} Ke4 {[%emt 0:00:04]} 66. Kc4 {[%emt 0:00:04]} Kf3+ {[%emt 0:00:03]} 67. Kd3 {[%emt 0:00:04]} Kg2 {[%emt 0:00:02] Kd4} 0-1

[Event "Kupreichik Memorial Rapid 2019"]
[Site "Minsk"]
[Date "2019.08.16"]
[Round "5.27"]
[White "Kiryliuk, Ilya"]
[Black "Karlov, Egor"]
[Result "1-0"]
[ECO "C07"]
[WhiteElo "1948"]
[BlackElo "1728"]
[Annotator "NA"]
[PlyCount "59"]
[EventDate "2019.08.15"]
[EventType "swiss"]
[EventCountry "BLR"]
[SourceTitle "playchess.com"]
[Source "ChessBase"]
[SourceQuality "1"]
[TimeControl "900+10"]

1. e4 {[%emt 0:00:00]} e6 {[%emt 0:00:00]} 2. d4 {[%emt 0:00:00]} d5 {[%emt 0:00:00]} 3. Nd2 {[%emt 0:00:00]} c5 {[%emt 0:00:00]} 4. exd5 {[%emt 0:00:00]} Qxd5 {[%emt 0:00:00]} 5. Ngf3 {[%emt 0:00:00]} cxd4 {[%emt 0:00:06]} 6. Bc4 {[%emt 0:00:00]} Qd8 {[%emt 0:00:02]} 7. O-O {[%emt 0:00:01]} Nf6 {[%emt 0:00:03]} 8. Nb3 {[%emt 0:00:06]} Nc6 {[%emt 0:00:22]} 9. Qe2 {[%emt 0:00:09]} Be7 {[%emt 0:00:07]} 10. Bf4 {[%emt 0:00:04]} O-O {[%emt 0:00:08]} 11. Rfd1 {[%emt 0:00:02]} Qb6 {[%emt 0:00:18]} 12. Nfxd4 {[%emt 0:00:25]} Nxd4 {[%emt 0:00:14]} 13. Rxd4 {[%emt 0:00:05]} a5 {[%emt 0:00:34]} 14. a4 {[%emt 0:00:10]} Rd8 {[%emt 0:00:53]} 15. Rxd8+ {[%emt 0:00:17]} Bxd8 {[%emt 0:00:23]} 16. Be3 {[%emt 0:01:38]} Qc7 {[%emt 0:00:15]} 17. Rd1 {[%emt 0:00:08]} Be7 {[%emt 0:00:10]} 18. Bd4 {[%emt 0:00:18]} Bd7 {[%emt 0:00:16]} 19. Be5 {[%emt 0:00:14]} Qc8 {[%emt 0:00:07]} 20. Nd4 {[%emt 0:01:08]} Bxa4 {[%emt 0:00:35]} 21. Nxe6 {[%emt 0:00:14]} Bxc2 {[%emt 0:01:20]} 22. Rc1 {[%emt 0:00:51]} Bb3 {[%emt 0:01:45]} 23. Nc7 {[%emt 0:00:20]} Bxc4 {[%emt 0:01:09]} 24. Rxc4 {[%emt 0:00:05]} b5 {[%emt 0:00:20]} 25. Rc2 {[%emt 0:01:09]} b4 {[%emt 0:02:25]} 26. Nxa8 {[%emt 0:03:05]} Qxa8 {[%emt 0:00:04]} 27. Bxf6 {[%emt 0:01:12]} Bxf6 {[%emt 0:00:12]} 28. Qg4 {[%emt 0:00:04]} Qe8 {[%emt 0:01:35]} 29. Rc8 {[%emt 0:00:13]} Bd8 {[%emt 0:00:02]} 30. Qd1 {[%emt 0:00:02]} 1-0

[Event "Kupreichik Memorial Rapid 2019"]
[Site "Minsk"]
[Date "2019.08.16"]
[Round "5.29"]
[White "Tyurin, Artem"]
[Black "Yasiukovich, Sergei"]
[Result "1-0"]
[ECO "A21"]
[WhiteElo "2057"]
[BlackElo "1529"]
[Annotator "NA"]
[PlyCount "43"]
[EventDate "2019.08.15"]
[EventType "swiss"]
[EventCountry "BLR"]
[SourceTitle "playchess.com"]
[Source "ChessBase"]
[SourceQuality "1"]
[TimeControl "900+10"]

1. c4 {[%emt 0:00:00]} e5 {[%emt 0:00:00]} 2. Nc3 {[%emt 0:00:00]} b6 {[%emt 0:00:00]} 3. Nf3 {[%emt 0:00:13]} Nc6 {[%emt 0:00:18]} 4. g3 {[%emt 0:00:14]} Bb7 {[%emt 0:00:04]} 5. Bg2 {[%emt 0:00:03]} Nd4 {[%emt 0:01:10]} 6. O-O {[%emt 0:00:24]} Nxf3+ {[%emt 0:00:07]} 7. exf3 {[%emt 0:00:13]} Nf6 {[%emt 0:01:19]} 8. Re1 {[%emt 0:00:01]} Be7 {[%emt 0:00:55]} 9. Rxe5 {[%emt 0:00:05]} O-O {[%emt 0:00:04]} 10. d4 {[%emt 0:00:09]} d5 {[%emt 0:01:32]} 11. f4 {[%emt 0:00:10]} c6 {[%emt 0:00:29]} 12. cxd5 {[%emt 0:00:11]} Nxd5 {[%emt 0:00:14]} 13. Nxd5 {[%emt 0:00:13]} cxd5 {[%emt 0:00:03]} 14. b3 {[%emt 0:00:44]} Bf6 {[%emt 0:00:12]} 15. Re3 {[%emt 0:00:04]} Qd7 {[%emt 0:00:52]} 16. Bb2 {[%emt 0:00:06]} Rfd8 {[%emt 0:00:39]} 17. Qd2 {[%emt 0:00:06]} g6 {[%emt 0:01:06]} 18. Rae1 {[%emt 0:00:39]} Rac8 {[%emt 0:00:27]} 19. Ba3 {[%emt 0:00:27]} Qf5 {[%emt 0:01:19]} 20. Bf1 {[%emt 0:00:25]} Rc2 {[%emt 0:02:45]} 21. Re8+ {[%emt 0:00:26]} Kg7 {[%emt 0:00:07]} 22. Bf8+ {[%emt 0:00:02]} 1-0

[Event "Kupreichik Memorial Rapid 2019"]
[Site "Minsk"]
[Date "2019.08.16"]
[Round "5.30"]
[White "Spizharny, Mikhail"]
[Black "Shaban, Aliaksandra"]
[Result "1-0"]
[ECO "B12"]
[WhiteElo "2079"]
[BlackElo "1734"]
[Annotator "NA"]
[PlyCount "95"]
[EventDate "2019.08.15"]
[EventType "swiss"]
[EventCountry "BLR"]
[SourceTitle "playchess.com"]
[Source "ChessBase"]
[SourceQuality "1"]
[TimeControl "900+10"]

1. e4 {[%emt 0:00:00]} c6 {[%emt 0:00:00]} 2. d4 {[%emt 0:00:00]} d5 {[%emt 0:00:00]} 3. e5 {[%emt 0:00:00]} Bf5 {[%emt 0:00:00]} 4. h4 {[%emt 0:00:00]} h5 {[%emt 0:00:00]} 5. c4 {[%emt 0:00:00]} e6 {[%emt 0:00:00]} 6. Nc3 {[%emt 0:00:00]} dxc4 {[%emt 0:00:04]} 7. Bxc4 {[%emt 0:00:01]} Nd7 {[%emt 0:00:07]} 8. Nge2 {[%emt 0:01:01]} Nb6 {[%emt 0:00:33]} 9. Bb3 {[%emt 0:00:17]} Ne7 {[%emt 0:00:40]} 10. Bg5 {[%emt 0:00:30]} Qd7 {[%emt 0:00:54]} 11. Ng3 {[%emt 0:00:42]} Bg6 {[%emt 0:01:31]} 12. Qd2 {[%emt 0:00:41]} Nf5 {[%emt 0:00:20]} 13. Nce2 {[%emt 0:02:29]} Nd5 {[%emt 0:00:54]} 14. a3 {[%emt 0:02:48]} Be7 {[%emt 0:00:46]} 15. Nxf5 {[%emt 0:02:57]} Bxf5 {[%emt 0:00:13]} 16. Bxd5 {[%emt 0:00:29]} exd5 {[%emt 0:00:34]} 17. Rc1 {[%emt 0:00:25]} Bg6 {[%emt 0:01:17]} 18. O-O {[%emt 0:00:34]} O-O {[%emt 0:00:52]} 19. Ng3 {[%emt 0:00:36]} Rae8 {[%emt 0:01:08]} 20. Rc3 {[%emt 0:01:36]} f6 {[%emt 0:03:02]} 21. exf6 {[%emt 0:00:48]} Bxf6 {[%emt 0:00:04]} 22. Bxf6 {[%emt 0:00:14]} Rxf6 {[%emt 0:00:03]} 23. Re1 {[%emt 0:01:24]} Bf7 {[%emt 0:01:27]} 24. f3 {[%emt 0:00:31]} Rxe1+ {[%emt 0:01:33]} 25. Qxe1 {[%emt 0:00:02]} g6 {[%emt 0:00:09]} 26. Re3 {[%emt 0:00:12]} Re6 {[%emt 0:00:27]} 27. Nh1 {[%emt 0:00:27]} Qe7 {[%emt 0:00:17]} 28. Rxe6 {[%emt 0:00:07]} Qxe6 {[%emt 0:00:05]} 29. Qxe6 {[%emt 0:00:44]} Bxe6 {[%emt 0:00:01]} 30. Kf2 {[%emt 0:00:10]} Kg7 {[%emt 0:00:01]} 31. Ke3 {[%emt 0:00:02]} Kf7 {[%emt 0:00:27]} 32. Nf2 {[%emt 0:00:06]} b6 {[%emt 0:00:06]} 33. b4 {[%emt 0:00:16]} Bf5 {[%emt 0:00:21]} 34. Kf4 {[%emt 0:00:13]} Kf6 {[%emt 0:00:31]} 35. Nd1 {[%emt 0:00:10]} Bd3 {[%emt 0:00:50]} 36. Ne3 {[%emt 0:00:11]} Bb1 {[%emt 0:01:18]} 37. b5 {[%emt 0:00:12]} cxb5 {[%emt 0:00:20]} 38. Nxd5+ Ke6 39. Nc7+ {[%emt 0:00:09]} Kd7 {[%emt 0:00:03]} 40. Nxb5 {[%emt 0:00:01]} a6 {[%emt 0:00:02]} 41. Nc3 {[%emt 0:00:02]} Bd3 {[%emt 0:00:03]} 42. Ke5 {[%emt 0:00:03]} b5 {[%emt 0:00:05]} 43. d5 {[%emt 0:00:40]} Bf1 {[%emt 0:00:13]} 44. g4 {[%emt 0:00:05]} hxg4 {[%emt 0:00:10]} 45. fxg4 {[%emt 0:00:01]} Bd3 {[%emt 0:00:05]} 46. h5 {[%emt 0:00:10]} gxh5 {[%emt 0:00:14]} 47. gxh5 {[%emt 0:00:02]} Bc2 {[%emt 0:00:16]} 48. Ne4 {[%emt 0:00:19]} 1-0

[Event "Kupreichik Memorial Rapid 2019"]
[Site "Minsk"]
[Date "2019.08.16"]
[Round "5.31"]
[White "Kasperovich, Mikhail"]
[Black "Stanishevskij, Aleksandr"]
[Result "1-0"]
[ECO "A46"]
[WhiteElo "1324"]
[BlackElo "1830"]
[Annotator "NA"]
[PlyCount "123"]
[EventDate "2019.08.15"]
[EventType "swiss"]
[EventCountry "BLR"]
[SourceTitle "playchess.com"]
[Source "ChessBase"]
[SourceQuality "1"]
[TimeControl "900+10"]

1. d4 {[%emt 0:00:00]} Nf6 {[%emt 0:00:11]} 2. Nf3 {[%emt 0:00:00]} c5 {[%emt 0:00:14]} 3. e3 {[%emt 0:00:49]} g6 {[%emt 0:00:08]} 4. g3 {[%emt 0:00:30]} Bg7 {[%emt 0:00:07]} 5. Bg2 {[%emt 0:00:06]} O-O {[%emt 0:00:25]} 6. O-O {[%emt 0:00:04]} d6 {[%emt 0:00:07]} 7. c4 {[%emt 0:00:32]} Nc6 {[%emt 0:00:45]} 8. d5 {[%emt 0:00:29]} Nb8 {[%emt 0:00:20]} 9. Nc3 {[%emt 0:00:12]} a6 {[%emt 0:00:10]} 10. e4 {[%emt 0:01:23]} Nbd7 {[%emt 0:00:34]} 11. Nh4 {[%emt 0:02:17]} Rb8 {[%emt 0:00:40]} 12. Qe2 {[%emt 0:00:38]} Qa5 {[%emt 0:01:44]} 13. Bd2 {[%emt 0:01:15]} b5 {[%emt 0:04:06]} 14. Nxb5 {[%emt 0:01:44]} Qb6 {[%emt 0:00:42]} 15. Nc3 {[%emt 0:00:13]} Qxb2 {[%emt 0:00:31]} 16. Rab1 {[%emt 0:01:19]} Qa3 {[%emt 0:00:36]} 17. Rxb8 {[%emt 0:00:08]} Nxb8 {[%emt 0:00:15]} 18. Rb1 {[%emt 0:00:05]} Nbd7 {[%emt 0:00:42]} 19. Rb3 {[%emt 0:02:24]} Qa5 {[%emt 0:00:16]} 20. f4 {[%emt 0:00:10]} Ne8 {[%emt 0:01:10]} 21. Nf3 {[%emt 0:00:26]} Qc7 {[%emt 0:00:32]} 22. Na4 {[%emt 0:01:20]} e5 {[%emt 0:00:57]} 23. fxe5 {[%emt 0:01:09]} Nxe5 {[%emt 0:00:18]} 24. Nxe5 {[%emt 0:00:07]} Bxe5 {[%emt 0:00:08]} 25. Bc3 {[%emt 0:00:08]} Qe7 {[%emt 0:00:38]} 26. Bxe5 {[%emt 0:00:23]} Qxe5 {[%emt 0:00:01]} 27. Qb2 {[%emt 0:00:03]} Qg5 {[%emt 0:00:18]} 28. Nb6 {[%emt 0:00:49]} Ng7 29. Nxc8 {[%emt 0:00:25]} Rxc8 {[%emt 0:01:21]} 30. Rf3 {[%emt 0:00:07]} Re8 {[%emt 0:00:24]} 31. Rf6 {[%emt 0:00:23]} Qe3+ {[%emt 0:00:39]} 32. Qf2 {[%emt 0:00:08]} Qc1+ {[%emt 0:00:33]} 33. Bf1 {[%emt 0:00:07]} Rxe4 {[%emt 0:00:21]} 34. Rxf7 {[%emt 0:00:01]} h6 {[%emt 0:00:03]} 35. Rf6 {[%emt 0:00:07]} Kh7 {[%emt 0:00:12]} 36. Rxd6 {[%emt 0:00:11]} Rxc4 {[%emt 0:00:22]} 37. Rc6 {[%emt 0:00:39]} Nf5 {[%emt 0:00:21]} 38. d6 {[%emt 0:00:11]} Rd4 {[%emt 0:00:04]} 39. d7 {[%emt 0:00:03]} Rxd7 {[%emt 0:00:15]} 40. Rxc5 Qe3 {[%emt 0:00:02]} 41. Qxe3 {[%emt 0:00:09]} Nxe3 {[%emt 0:00:02]} 42. Bxa6 {[%emt 0:00:02]} Ra7 {[%emt 0:00:03]} 43. Rc6 {[%emt 0:00:29]} Kg7 {[%emt 0:00:06]} 44. a4 {[%emt 0:00:02]} Nd5 {[%emt 0:00:04]} 45. Bb5 {[%emt 0:00:05]} Ra5 {[%emt 0:00:17]} 46. Kf2 {[%emt 0:00:13]} Ne7 {[%emt 0:00:26]} 47. Ra6 {[%emt 0:00:02]} Rxa6 {[%emt 0:00:03]} 48. Bxa6 {[%emt 0:00:01]} Kf6 {[%emt 0:00:05]} 49. Bb5 {[%emt 0:00:07]} Ke5 {[%emt 0:00:03]} 50. Ke3 {[%emt 0:00:01]} Nd5+ {[%emt 0:00:01]} 51. Kd3 {[%emt 0:00:05]} g5 {[%emt 0:00:13]} 52. a5 {[%emt 0:00:24]} Nc7 {[%emt 0:00:11]} 53. Bc4 {[%emt 0:00:04]} Kd6 {[%emt 0:00:33]} 54. Kd4 {[%emt 0:00:11]} Ne8 {[%emt 0:00:18]} 55. a6 {[%emt 0:00:08]} Kc7 {[%emt 0:00:05]} 56. a7 {[%emt 0:00:05]} Kb7 {[%emt 0:00:05]} 57. Ke5 {[%emt 0:00:04]} Kxa7 {[%emt 0:00:05]} 58. Bf7 {[%emt 0:00:03]} Nc7 {[%emt 0:00:25]} 59. Kf5 {[%emt 0:00:04]} Kb6 {[%emt 0:00:07]} 60. Kg6 {[%emt 0:00:03]} Kc5 {[%emt 0:00:12]} 61. Kxh6 {[%emt 0:00:01]} g4 {[%emt 0:00:00]} 62. Kg5 {[%emt 0:00:05]} 1-0

[Event "Kupreichik Memorial Rapid 2019"]
[Site "Minsk"]
[Date "2019.08.16"]
[Round "5.33"]
[White "Tarasionak, Arseni"]
[Black "Arlou, Valery"]
[Result "0-1"]
[ECO "E62"]
[WhiteElo "1209"]
[BlackElo "1759"]
[Annotator "NA"]
[PlyCount "46"]
[EventDate "2019.08.15"]
[EventType "swiss"]
[EventCountry "BLR"]
[SourceTitle "playchess.com"]
[Source "ChessBase"]
[SourceQuality "1"]
[TimeControl "900+10"]

1. d4 {[%emt 0:00:01]} g6 {[%emt 0:00:00]} 2. c4 {[%emt 0:00:02]} Bg7 {[%emt 0:00:00]} 3. Nf3 {[%emt 0:00:02]} d6 {[%emt 0:00:00]} 4. Nc3 {[%emt 0:00:01]} Nf6 {[%emt 0:00:00]} 5. g3 {[%emt 0:00:04]} O-O {[%emt 0:00:02]} 6. Bg2 {[%emt 0:00:02]} c6 {[%emt 0:00:19]} 7. O-O {[%emt 0:00:05]} a5 {[%emt 0:00:22]} 8. h3 {[%emt 0:00:06]} Na6 {[%emt 0:00:02]} 9. e4 {[%emt 0:00:34]} Qc7 {[%emt 0:00:22]} 10. Qe2 {[%emt 0:00:11]} e5 {[%emt 0:00:51]} 11. d5 {[%emt 0:00:02]} Bd7 {[%emt 0:00:25]} 12. Bg5 {[%emt 0:00:55]} Rfe8 {[%emt 0:00:22]} 13. Rac1 {[%emt 0:00:31]} h6 {[%emt 0:01:06]} 14. Bxf6 {[%emt 0:00:50]} Bxf6 {[%emt 0:00:01]} 15. h4 {[%emt 0:00:47]} h5 {[%emt 0:00:33]} 16. Ng5 {[%emt 0:01:19]} Qd8 {[%emt 0:01:54]} 17. f4 {[%emt 0:00:04]} exf4 {[%emt 0:00:37]} 18. gxf4 {[%emt 0:00:22]} Bg4 {[%emt 0:02:09]} 19. Qf2 {[%emt 0:00:02]} Rf8 {[%emt 0:00:45]} 20. Ne2 {[%emt 0:03:53]} Nc5 {[%emt 0:00:19]} 21. Nd4 {[%emt 0:00:10]} Nd3 {[%emt 0:01:10]} 22. Qe3 {[%emt 0:00:03]} Nxc1 {[%emt 0:00:12]} 23. dxc6 {[%emt 0:00:04]} Bxd4 {[%emt 0:00:09]} 0-1

[Event "Kupreichik Memorial Rapid 2019"]
[Site "Minsk"]
[Date "2019.08.16"]
[Round "5.34"]
[White "Rataika, Mikalai"]
[Black "Karmishyn, Vadzim"]
[Result "1-0"]
[ECO "A41"]
[WhiteElo "1920"]
[BlackElo "1494"]
[Annotator "NA"]
[PlyCount "45"]
[EventDate "2019.08.15"]
[EventType "swiss"]
[EventCountry "BLR"]
[SourceTitle "playchess.com"]
[Source "ChessBase"]
[SourceQuality "1"]
[TimeControl "900+10"]

1. d4 {[%emt 0:00:00]} d6 {[%emt 0:00:00]} 2. Nf3 {[%emt 0:00:00]} g6 {[%emt 0:00:00]} 3. e4 {[%emt 0:00:03]} Bg7 {[%emt 0:00:03]} 4. Bc4 {[%emt 0:00:09]} Nf6 {[%emt 0:00:05]} 5. Nc3 {[%emt 0:00:09]} O-O {[%emt 0:00:06]} 6. O-O {[%emt 0:00:32]} Nbd7 {[%emt 0:00:02]} 7. e5 {[%emt 0:00:32]} dxe5 {[%emt 0:00:44]} 8. dxe5 {[%emt 0:00:02]} Ng4 {[%emt 0:00:18]} 9. Bxf7+ {[%emt 0:02:04]} Rxf7 {[%emt 0:01:33]} 10. Ng5 {[%emt 0:00:07]} Ngxe5 {[%emt 0:02:43]} 11. f4 {[%emt 0:00:42]} c6 {[%emt 0:02:34]} 12. fxe5 {[%emt 0:01:57]} Qb6+ {[%emt 0:00:58]} 13. Kh1 {[%emt 0:00:11]} Rxf1+ {[%emt 0:00:07]} 14. Qxf1 {[%emt 0:00:02]} Nxe5 {[%emt 0:00:06]} 15. Bf4 {[%emt 0:01:25]} Ng4 {[%emt 0:01:49]} 16. Qc4+ {[%emt 0:01:59]} e6 {[%emt 0:00:03]} 17. Nce4 {[%emt 0:02:11]} Qxb2 {[%emt 0:01:30]} 18. Rd1 {[%emt 0:00:29]} Ne5 {[%emt 0:02:19]} 19. Rd8+ {[%emt 0:01:11]} Bf8 {[%emt 0:00:03]} 20. Qf1 {[%emt 0:00:48]} Ng4 {[%emt 0:02:56]} 21. Rxf8+ {[%emt 0:01:14]} Kg7 {[%emt 0:00:06]} 22. Rf7+ Kg8 {[%emt 0:00:04]} 23. Bd6 {[%emt 0:01:02]} 1-0